fUST/lending_fUST_20260501
["ID","MTS","AMOUNT","RATE_DAILY","PERIOD"]
[421416303,1777605041000,-151.0,0.00018851,2]
[421416273,1777605041000,-160.0,0.00018794,2]
[421416274,1777605041000,-249.543223,0.00018794,2]
[421416281,1777605041000,-502.39220234,0.000188,2]
[421416279,1777605041000,-151.0,0.000188,2]
[421416276,1777605041000,-196.713313,0.00018794,7]
[421416284,1777605041000,-3089.21861974,0.00018819,7]
[421416278,1777605041000,-151.0,0.000188,2]
[421416280,1777605041000,-6178.21524555,0.000188,2]
[421416277,1777605041000,-227.0,0.000188,2]
[421416285,1777605041000,-511.49,0.00018845,2]
[421416283,1777605041000,-2970.51655262,0.00018819,7]
[421416287,1777605041000,-1196.32,0.00018845,2]
[421416298,1777605041000,-890.500734,0.00018851,2]
[421416282,1777605041000,-500.0,0.000188,2]
[421416289,1777605041000,-2970.51655262,0.00018851,7]
[421416297,1777605041000,-890.500734,0.00018851,2]
[421416300,1777605041000,-414.854929,0.00018851,2]
[421416290,1777605041000,-3089.21861974,0.00018851,7]
[421416291,1777605041000,-533.083131,0.00018851,2]
[421416293,1777605041000,-533.083131,0.00018851,2]
[421416295,1777605041000,-890.500734,0.00018851,2]
[421416292,1777605041000,-533.083131,0.00018851,2]
[421416302,1777605041000,-414.854929,0.00018851,2]
[421416288,1777605041000,-500.0,0.00018845,2]
[421416294,1777605041000,-533.083131,0.00018851,2]
[421416286,1777605041000,-500.0,0.00018845,2]
[421416299,1777605041000,-414.854929,0.00018851,2]
[421416296,1777605041000,-890.500734,0.00018851,2]
[421416371,1777605042000,-555.904341,0.000189,2]
[421416386,1777605042000,-664.87908,0.000189,2]
[421416376,1777605042000,-315.542026,0.000189,2]
[421416370,1777605042000,-555.904341,0.000189,2]
[421416369,1777605042000,-151.0,0.000189,2]
[421416367,1777605042000,-414.854929,0.000189,2]
[421416372,1777605042000,-555.904341,0.000189,2]
[421416374,1777605042000,-315.542026,0.000189,2]
[421416366,1777605042000,-414.854929,0.000189,2]
[421416363,1777605042000,-890.500734,0.000189,2]
[421416389,1777605042000,-664.87908,0.000189,2]
[421416362,1777605042000,-890.500734,0.000189,2]
[421416377,1777605042000,-315.542026,0.000189,2]
[421416391,1777605042000,-276.66269782,0.00018913,2]
[421416378,1777605042000,-465.468289,0.000189,2]
[421416379,1777605042000,-465.468289,0.000189,2]
[421416388,1777605042000,-664.87908,0.000189,2]
[421416375,1777605042000,-315.542026,0.000189,2]
[421416381,1777605042000,-465.468289,0.000189,2]
[421416382,1777605042000,-550.601897,0.000189,2]
[421416383,1777605042000,-550.601897,0.000189,2]
[421416384,1777605042000,-550.601897,0.000189,2]
[421416385,1777605042000,-550.601897,0.000189,2]
[421416380,1777605042000,-465.468289,0.000189,2]
[421416390,1777605042000,-511.49,0.00018913,2]
[421416392,1777605042000,-1196.32,0.00018913,2]
[421416368,1777605042000,-414.854929,0.000189,2]
[421416387,1777605042000,-664.87908,0.000189,2]
[421416361,1777605042000,-890.500734,0.000189,2]
[421416354,1777605042000,-1255.4212166,0.000189,2]
[421416365,1777605042000,-414.854929,0.000189,2]
[421416395,1777605042000,-3089.21861974,0.00018914,7]
[421416336,1777605042000,-395.964286,0.00018899,2]
[421416337,1777605042000,-395.964286,0.00018899,2]
[421416334,1777605042000,-1196.32,0.00018899,2]
[421416338,1777605042000,-395.964286,0.00018899,2]
[421416335,1777605042000,-395.964286,0.00018899,2]
[421416344,1777605042000,-533.083131,0.000189,2]
[421416345,1777605042000,-533.083131,0.000189,2]
[421416342,1777605042000,-151.0,0.000189,2]
[421416341,1777605042000,-151.0,0.000189,2]
[421416339,1777605042000,-500.0,0.00018899,2]
[421416340,1777605042000,-1766.9,0.000189,2]
[421416343,1777605042000,-533.083131,0.000189,2]
[421416373,1777605042000,-555.904341,0.000189,2]
[421416346,1777605042000,-533.08313,0.000189,2]
[421416353,1777605042000,-1255.4212166,0.000189,2]
[421416355,1777605042000,-1255.4212166,0.000189,2]
[421416359,1777605042000,-395.964286,0.000189,2]
[421416360,1777605042000,-395.964286,0.000189,2]
[421416351,1777605042000,-1255.4212166,0.000189,2]
[421416356,1777605042000,-1255.4212166,0.000189,2]
[421416357,1777605042000,-395.964286,0.000189,2]
[421416358,1777605042000,-395.964286,0.000189,2]
[421416348,1777605042000,-1255.4212166,0.000189,2]
[421416349,1777605042000,-1255.4212166,0.000189,2]
[421416352,1777605042000,-1255.4212166,0.000189,2]
[421416350,1777605042000,-1255.4212166,0.000189,2]
[421416364,1777605042000,-890.500734,0.000189,2]
[421416347,1777605042000,-1255.42121668,0.000189,2]
[421416394,1777605042000,-2970.51655262,0.00018914,7]
[421416393,1777605042000,-500.0,0.00018913,2]
[421416402,1777605042000,-465.468296,0.00018967,2]
[421416422,1777605042000,-414.854929,0.00018978,2]
[421416427,1777605042000,-664.87908,0.00018978,2]
[421416433,1777605042000,-511.49,0.00018999,2]
[421416432,1777605042000,-511.49,0.00018999,2]
[421416434,1777605042000,-511.49,0.00018999,2]
[421416431,1777605042000,-511.49,0.00018999,2]
[421416435,1777605042000,-511.49,0.00018999,2]
[421416437,1777605042000,-511.49,0.00018999,2]
[421416436,1777605042000,-511.49,0.00018999,2]
[421416438,1777605042000,-511.49,0.00018999,2]
[421416450,1777605042000,-511.49,0.00018999,2]
[421416441,1777605042000,-511.49,0.00018999,2]
[421416443,1777605042000,-511.49,0.00018999,2]
[421416428,1777605042000,-664.87908,0.00018978,2]
[421416449,1777605042000,-511.49,0.00018999,2]
[421416445,1777605042000,-511.49,0.00018999,2]
[421416447,1777605042000,-511.49,0.00018999,2]
[421416451,1777605042000,-511.49,0.00018999,2]
[421416454,1777605042000,-1196.32,0.00018999,2]
[421416456,1777605042000,-1196.32,0.00018999,2]
[421416455,1777605042000,-1196.32,0.00018999,2]
[421416452,1777605042000,-511.57554146,0.00018999,2]
[421416453,1777605042000,-1196.32,0.00018999,2]
[421416457,1777605042000,-1196.32,0.00018999,2]
[421416458,1777605042000,-1196.32,0.00018999,2]
[421416464,1777605042000,-1196.32,0.00018999,2]
[421416460,1777605042000,-1196.32,0.00018999,2]
[421416462,1777605042000,-1196.32,0.00018999,2]
[421416448,1777605042000,-511.49,0.00018999,2]
[421416423,1777605042000,-414.854929,0.00018978,2]
[421416463,1777605042000,-1196.32,0.00018999,2]
[421416426,1777605042000,-151.0,0.00018978,2]
[421416396,1777605042000,-2970.51655262,0.00018946,14]
[421416397,1777605042000,-3089.21861974,0.00018946,14]
[421416398,1777605042000,-1000.0,0.00018967,2]
[421416399,1777605042000,-465.468289,0.00018967,2]
[421416400,1777605042000,-465.468289,0.00018967,2]
[421416401,1777605042000,-465.468289,0.00018967,2]
[421416404,1777605042000,-550.601897,0.00018967,2]
[421416424,1777605042000,-414.854929,0.00018978,2]
[421416416,1777605042000,-2970.51655262,0.00018978,14]
[421416415,1777605042000,-315.542032,0.00018976,2]
[421416406,1777605042000,-550.601903,0.00018967,2]
[421416403,1777605042000,-550.601897,0.00018967,2]
[421416409,1777605042000,-555.904341,0.00018976,2]
[421416405,1777605042000,-550.601897,0.00018967,2]
[421416414,1777605042000,-315.542026,0.00018976,2]
[421416407,1777605042000,-10000.0,0.00018976,2]
[421416408,1777605042000,-555.904341,0.00018976,2]
[421416430,1777605042000,-664.87909,0.00018978,2]
[421416425,1777605042000,-414.854928,0.00018978,2]
[421416429,1777605042000,-664.87908,0.00018978,2]
[421416418,1777605042000,-890.500734,0.00018978,2]
[421416421,1777605042000,-890.500744,0.00018978,2]
[421416419,1777605042000,-890.500734,0.00018978,2]
[421416417,1777605042000,-3089.21861974,0.00018978,14]
[421416412,1777605042000,-315.542026,0.00018976,2]
[421416413,1777605042000,-315.542026,0.00018976,2]
[421416410,1777605042000,-555.904341,0.00018976,2]
[421416411,1777605042000,-555.904345,0.00018976,2]
[421416420,1777605042000,-890.500734,0.00018978,2]
[421416506,1777605043000,-1508.0,0.00019068,2]
[421416512,1777605043000,-250.0,0.000191,2]
[421416507,1777605043000,-400.0,0.0001907,2]
[421416508,1777605043000,-600.0,0.0001907,4]
[421416501,1777605043000,-173.182842,0.00019,2]
[421416494,1777605043000,-433477.0,0.00019,10]
[421416500,1777605043000,-173.182842,0.00019,2]
[421416499,1777605043000,-173.182842,0.00019,2]
[421416502,1777605043000,-151.0,0.00019,2]
[421416498,1777605043000,-173.182842,0.00019,2]
[421416496,1777605043000,-560.25378233,0.00019,30]
[421416497,1777605043000,-2909.0,0.00019,2]
[421416511,1777605043000,-160.0,0.00019089,6]
[421416521,1777605043000,-1874.31911145,0.00019168,14]
[421416510,1777605043000,-4988.00732686,0.00019078,2]
[421416515,1777605043000,-173.182842,0.00019168,2]
[421416513,1777605043000,-250.3,0.000191,2]
[421416517,1777605043000,-173.182842,0.00019168,2]
[421416518,1777605043000,-173.182842,0.00019168,2]
[421416519,1777605043000,-151.0,0.00019168,2]
[421416514,1777605043000,-753.95600515,0.000191,2]
[421416516,1777605043000,-173.182842,0.00019168,2]
[421416532,1777605043000,-236.961099,0.00019178,2]
[421416522,1777605043000,-158.447,0.00019177,2]
[421416526,1777605043000,-1986.7318,0.00019178,2]
[421416528,1777605043000,-1271.76093,0.00019178,2]
[421416527,1777605043000,-8902.546472,0.00019178,2]
[421416505,1777605043000,-151.0,0.00019,2]
[421416509,1777605043000,-167.07741503,0.00019077,2]
[421416504,1777605043000,-151.0,0.00019,2]
[421416479,1777605043000,-500.0,0.00018999,2]
[421416495,1777605043000,-24750.97863834,0.00019,2]
[421416523,1777605043000,-2819.0275,0.00019178,2]
[421416465,1777605043000,-1196.32,0.00018999,2]
[421416467,1777605043000,-1196.32,0.00018999,2]
[421416477,1777605043000,-500.0,0.00018999,2]
[421416476,1777605043000,-500.0,0.00018999,2]
[421416472,1777605043000,-395.964286,0.00018999,2]
[421416466,1777605043000,-1196.32,0.00018999,2]
[421416478,1777605043000,-500.0,0.00018999,2]
[421416469,1777605043000,-1196.32,0.00018999,2]
[421416468,1777605043000,-1196.32,0.00018999,2]
[421416471,1777605043000,-1196.34904751,0.00018999,2]
[421416470,1777605043000,-1196.32,0.00018999,2]
[421416474,1777605043000,-395.964286,0.00018999,2]
[421416503,1777605043000,-151.0,0.00019,2]
[421416475,1777605043000,-395.964293,0.00018999,2]
[421416481,1777605043000,-500.0,0.00018999,2]
[421416492,1777605043000,-359.32686376,0.00018999,2]
[421416483,1777605043000,-500.0,0.00018999,2]
[421416485,1777605043000,-500.0,0.00018999,2]
[421416488,1777605043000,-500.0,0.00018999,2]
[421416482,1777605043000,-500.0,0.00018999,2]
[421416490,1777605043000,-500.0,0.00018999,2]
[421416484,1777605043000,-500.0,0.00018999,2]
[421416491,1777605043000,-500.0,0.00018999,2]
[421416493,1777605043000,-450.50085255,0.00019,5]
[421416489,1777605043000,-500.0,0.00018999,2]
[421416486,1777605043000,-500.0,0.00018999,2]
[421416487,1777605043000,-500.0,0.00018999,2]
[421416473,1777605043000,-395.964286,0.00018999,2]
[421416524,1777605043000,-500.0,0.00019178,2]
[421416552,1777605043000,-173.182842,0.00019178,2]
[421416531,1777605043000,-2350.3968,0.00019178,2]
[421416561,1777605043000,-500.0,0.00019178,2]
[421416569,1777605043000,-500.0,0.00019178,2]
[421416571,1777605043000,-586.9,0.00019178,2]
[421416562,1777605043000,-626.73,0.00019178,2]
[421416567,1777605043000,-577.34,0.00019178,2]
[421416564,1777605043000,-921.71,0.00019178,2]
[421416568,1777605043000,-500.0,0.00019178,2]
[421416566,1777605043000,-151.0,0.00019178,2]
[421416565,1777605043000,-942.18,0.00019178,2]
[421416576,1777605043000,-238.97134794,0.00019178,2]
[421416575,1777605043000,-500.0,0.00019178,2]
[421416574,1777605043000,-500.0,0.00019178,2]
[421416578,1777605043000,-500.0,0.00019178,2]
[421416570,1777605043000,-620.88,0.00019178,2]
[421416577,1777605043000,-500.0,0.00019178,2]
[421416573,1777605043000,-500.0,0.00019178,2]
[421416581,1777605043000,-548.93,0.00019178,2]
[421416580,1777605043000,-500.0,0.00019178,2]
[421416583,1777605043000,-500.0,0.00019178,2]
[421416582,1777605043000,-500.0,0.00019178,2]
[421416584,1777605043000,-500.0,0.00019178,2]
[421416586,1777605043000,-542.13,0.00019178,2]
[421416585,1777605043000,-500.0,0.00019178,2]
[421416587,1777605043000,-500.0,0.00019178,2]
[421416589,1777605043000,-500.0,0.00019178,2]
[421416588,1777605043000,-500.0,0.00019178,2]
[421416591,1777605043000,-500.0,0.00019178,2]
[421416520,1777605043000,-153.177801,0.00019168,2]
[421416579,1777605043000,-2112.95,0.00019178,2]
[421416560,1777605043000,-500.0,0.00019178,2]
[421416572,1777605043000,-500.0,0.00019178,2]
[421416558,1777605043000,-500.0,0.00019178,2]
[421416525,1777605043000,-500.0,0.00019178,2]
[421416529,1777605043000,-2350.3876,0.00019178,2]
[421416563,1777605043000,-1084.03,0.00019178,2]
[421416533,1777605043000,-1106.572019,0.00019178,2]
[421416535,1777605043000,-153.07873785,0.00019178,2]
[421416539,1777605043000,-723.75,0.00019178,2]
[421416544,1777605043000,-500.0,0.00019178,2]
[421416538,1777605043000,-500.0,0.00019178,2]
[421416537,1777605043000,-500.0,0.00019178,2]
[421416541,1777605043000,-1598.56,0.00019178,2]
[421416536,1777605043000,-500.0,0.00019178,2]
[421416534,1777605043000,-500.0,0.00019178,2]
[421416540,1777605043000,-511.25,0.00019178,2]
[421416542,1777605043000,-906.76,0.00019178,2]
[421416543,1777605043000,-3012.88,0.00019178,2]
[421416530,1777605043000,-902.3273,0.00019178,2]
[421416556,1777605043000,-720.33,0.00019178,2]
[421416546,1777605043000,-579.5,0.00019178,2]
[421416559,1777605043000,-500.0,0.00019178,2]
[421416590,1777605043000,-500.0,0.00019178,2]
[421416554,1777605043000,-173.182844,0.00019178,2]
[421416553,1777605043000,-173.182842,0.00019178,2]
[421416550,1777605043000,-500.0,0.00019178,2]
[421416555,1777605043000,-935.31,0.00019178,2]
[421416549,1777605043000,-620.53,0.00019178,2]
[421416551,1777605043000,-173.182842,0.00019178,2]
[421416547,1777605043000,-500.0,0.00019178,2]
[421416545,1777605043000,-500.0,0.00019178,2]
[421416557,1777605043000,-500.0,0.00019178,2]
[421416548,1777605043000,-2986.56,0.00019178,2]
[421416610,1777605044000,-500.0,0.00019178,2]
[421416606,1777605044000,-500.0,0.00019178,2]
[421416618,1777605044000,-410.86527892,0.00019178,2]
[421416617,1777605044000,-655.87,0.00019178,2]
[421416612,1777605044000,-2415.26,0.00019178,2]
[421416611,1777605044000,-500.0,0.00019178,2]
[421416614,1777605044000,-500.0,0.00019178,2]
[421416616,1777605044000,-2458.22,0.00019178,2]
[421416609,1777605044000,-500.0,0.00019178,2]
[421416607,1777605044000,-500.0,0.00019178,2]
[421416615,1777605044000,-604.86,0.00019178,2]
[421416597,1777605044000,-993.92,0.00019178,2]
[421416602,1777605044000,-500.0,0.00019178,2]
[421416598,1777605044000,-500.0,0.00019178,2]
[421416604,1777605044000,-500.0,0.00019178,2]
[421416594,1777605044000,-500.0,0.00019178,2]
[421416600,1777605044000,-1469.86,0.00019178,2]
[421416603,1777605044000,-500.0,0.00019178,2]
[421416596,1777605044000,-1035.95,0.00019178,2]
[421416599,1777605044000,-772.6,0.00019178,2]
[421416595,1777605044000,-707.43,0.00019178,2]
[421416605,1777605044000,-500.0,0.00019178,2]
[421416592,1777605044000,-551.1,0.00019178,2]
[421416593,1777605044000,-1387.31,0.00019178,2]
[421416613,1777605044000,-646.61,0.00019178,2]
[421416601,1777605044000,-500.0,0.00019178,2]
[421416619,1777605044000,-885.35,0.00019178,2]
[421416608,1777605044000,-613.08,0.00019178,2]
[421416620,1777605044000,-500.0,0.00019178,2]
[421416646,1777605044000,-938.75,0.00019178,2]
[421416647,1777605044000,-239.88544985,0.00019178,2]
[421416640,1777605044000,-500.0,0.00019178,2]
[421416639,1777605044000,-1309.22,0.00019178,2]
[421416637,1777605044000,-707.7,0.00019178,2]
[421416638,1777605044000,-1789.23,0.00019178,2]
[421416635,1777605044000,-500.0,0.00019178,2]
[421416636,1777605044000,-500.0,0.00019178,2]
[421416641,1777605044000,-1024.13,0.00019178,2]
[421416632,1777605044000,-500.0,0.00019178,2]
[421416645,1777605044000,-500.0,0.00019178,2]
[421416644,1777605044000,-500.0,0.00019178,2]
[421416634,1777605044000,-500.0,0.00019178,2]
[421416643,1777605044000,-500.0,0.00019178,2]
[421416624,1777605044000,-918.92,0.00019178,2]
[421416629,1777605044000,-682.5,0.00019178,2]
[421416642,1777605044000,-500.0,0.00019178,2]
[421416628,1777605044000,-1139.96,0.00019178,2]
[421416630,1777605044000,-500.0,0.00019178,2]
[421416622,1777605044000,-500.0,0.00019178,2]
[421416625,1777605044000,-500.0,0.00019178,2]
[421416627,1777605044000,-500.0,0.00019178,2]
[421416626,1777605044000,-500.0,0.00019178,2]
[421416631,1777605044000,-500.0,0.00019178,2]
[421416633,1777605044000,-500.0,0.00019178,2]
[421416623,1777605044000,-500.0,0.00019178,2]
[421416621,1777605044000,-500.0,0.00019178,2]
[421416648,1777605045000,-160.0,0.00017699,2]
[421416655,1777605045000,-659.7749991,0.00019178,2]
[421416653,1777605045000,-116.28227009,0.00019178,2]
[421416654,1777605045000,-123.81229858,0.00019178,2]
[421416652,1777605045000,-1001.568233,0.00019,2]
[421416651,1777605045000,-362.822595,0.0001862,2]
[421416649,1777605045000,-160.0,0.0001862,2]
[421416650,1777605045000,-261.411297,0.0001862,2]
[421416662,1777606012000,181.27872796,0.00019373,120]
[421416753,1777606241000,-3854.57180769,0.00011943,2]
[421416758,1777606241000,-200.0,0.00012559,2]
[421416763,1777606241000,-500.0,0.00013971,2]
[421416761,1777606241000,-1000.0,0.00013699,2]
[421416759,1777606241000,-201.94,0.00012559,2]
[421416760,1777606241000,-300.0,0.00013698,2]
[421416757,1777606241000,-186.2785911,0.00012247,2]
[421416755,1777606241000,-5000.0,0.00012064,2]
[421416816,1777606242000,-162.380719,0.00017879,2]
[421416808,1777606242000,-1610.30074359,0.000174,2]
[421416804,1777606242000,-1508.0,0.0001726,2]
[421416792,1777606242000,-238.87356041,0.0001591,2]
[421416794,1777606242000,-253.3388839,0.00016247,2]
[421416796,1777606242000,-1508.0,0.00016438,2]
[421416799,1777606242000,-501.79651448,0.00016712,2]
[421416818,1777606242000,-537.6845,0.00017879,2]
[421416800,1777606242000,-510.10401149,0.00016712,2]
[421416803,1777606242000,-1508.0,0.00016986,2]
[421416801,1777606242000,-1508.0,0.00016712,2]
[421416819,1777606242000,-2150.738,0.00017879,2]
[421416809,1777606242000,-1693.2291265,0.000174,2]
[421416817,1777606242000,-537.6845,0.00017879,2]
[421416807,1777606242000,-1443.86958614,0.000174,2]
[421416811,1777606242000,-1508.0,0.00017534,2]
[421416814,1777606242000,-500.0,0.00017831,2]
[421416812,1777606242000,-160.0,0.00017558,2]
[421416790,1777606242000,-600.0,0.00015299,2]
[421416810,1777606242000,-600.0,0.00017491,2]
[421416815,1777606242000,-181.27872796,0.00017869,2]
[421416813,1777606242000,-1508.0,0.00017808,2]
[421416821,1777606242000,-167.07741502,0.00017969,2]
[421416822,1777606242000,-578.20924308,0.00017989,2]
[421416824,1777606242000,-599.60298507,0.00018044,2]
[421416820,1777606242000,-557.5788265,0.00017934,2]
[421416805,1777606242000,-238.87356041,0.00017331,2]
[421416823,1777606242000,-238.87356041,0.00018041,2]
[421416806,1777606242000,-664.97039961,0.000174,2]
[421416776,1777606242000,-300.0,0.00014249,2]
[421416772,1777606242000,-300.0,0.00014249,2]
[421416766,1777606242000,-300.0,0.00014249,2]
[421416768,1777606242000,-300.0,0.00014249,2]
[421416765,1777606242000,-300.0,0.00014249,2]
[421416774,1777606242000,-300.0,0.00014249,2]
[421416764,1777606242000,-219.8087375,0.00014247,2]
[421416773,1777606242000,-300.0,0.00014249,2]
[421416770,1777606242000,-300.0,0.00014249,2]
[421416771,1777606242000,-300.0,0.00014249,2]
[421416769,1777606242000,-300.0,0.00014249,2]
[421416775,1777606242000,-300.0,0.00014249,2]
[421416802,1777606242000,-720.0,0.00016829,2]
[421416789,1777606242000,-238.87356046,0.00015199,2]
[421416777,1777606242000,-300.0,0.00014249,2]
[421416784,1777606242000,-500.0,0.00014999,2]
[421416778,1777606242000,-300.0,0.00014249,2]
[421416779,1777606242000,-300.0,0.00014249,2]
[421416780,1777606242000,-385.2827481,0.00014999,2]
[421416783,1777606242000,-500.0,0.00014999,2]
[421416781,1777606242000,-169.46849249,0.00014999,2]
[421416786,1777606242000,-500.0,0.00014999,2]
[421416782,1777606242000,-500.0,0.00014999,2]
[421416785,1777606242000,-500.0,0.00014999,2]
[421416787,1777606242000,-575.29097161,0.00014999,2]
[421416798,1777606242000,-238.87356041,0.0001662,2]
[421416788,1777606242000,-39110.93673091,0.00015,2]
[421416827,1777606242000,-621.78829552,0.00018099,2]
[421416767,1777606242000,-300.0,0.00014249,2]
[421416826,1777606242000,-1508.0,0.00018082,2]
[421416861,1777606242000,-500.0,0.00018239,7]
[421416868,1777606242000,-500.0,0.00018239,7]
[421416869,1777606242000,-893.0,0.00018239,7]
[421416863,1777606242000,-500.0,0.00018239,7]
[421416856,1777606242000,-500.0,0.00018239,7]
[421416865,1777606242000,-500.0,0.00018239,7]
[421416870,1777606242000,-500.0,0.00018239,7]
[421416871,1777606242000,-500.0,0.00018239,7]
[421416873,1777606242000,-224.15125213,0.00018239,7]
[421416872,1777606242000,-893.0,0.00018239,7]
[421416874,1777606242000,-893.0,0.00018239,7]
[421416881,1777606242000,-719.04747942,0.00018319,2]
[421416867,1777606242000,-500.0,0.00018239,7]
[421416876,1777606242000,-893.0,0.00018239,7]
[421416875,1777606242000,-893.0,0.00018239,7]
[421416882,1777606242000,-995.18398913,0.00018356,2]
[421416880,1777606242000,-693.3919763,0.00018264,2]
[421416878,1777606242000,-915.43572452,0.00018239,7]
[421416883,1777606242000,-512.81601087,0.00018356,2]
[421416884,1777606242000,-745.65223616,0.00018374,2]
[421416885,1777606242000,-557.5788265,0.00018427,2]
[421416887,1777606242000,-238.58537148,0.00018429,2]
[421416886,1777606242000,-2230.315306,0.00018427,2]
[421416888,1777606242000,-160.0,0.00018455,3]
[421416889,1777606242000,-864.0,0.00018512,2]
[421416825,1777606242000,-2995.045443,0.0001805,2]
[421416877,1777606242000,-893.0,0.00018239,7]
[421416858,1777606242000,-500.0,0.00018239,7]
[421416879,1777606242000,-286.8690303,0.00018247,2]
[421416855,1777606242000,-500.0,0.00018239,7]
[421416859,1777606242000,-893.0,0.00018239,7]
[421416839,1777606242000,-893.0,0.00018239,7]
[421416832,1777606242000,-893.0,0.00018239,7]
[421416828,1777606242000,-644.79446246,0.00018154,2]
[421416833,1777606242000,-893.0,0.00018239,7]
[421416838,1777606242000,-893.0,0.00018239,7]
[421416830,1777606242000,-608.23456878,0.00018235,2]
[421416831,1777606242000,-218.75150046,0.00018238,2]
[421416837,1777606242000,-893.0,0.00018239,7]
[421416840,1777606242000,-893.0,0.00018239,7]
[421416836,1777606242000,-893.0,0.00018239,7]
[421416835,1777606242000,-893.0,0.00018239,7]
[421416834,1777606242000,-893.0,0.00018239,7]
[421416842,1777606242000,-893.0,0.00018239,7]
[421416829,1777606242000,-668.65185757,0.00018209,2]
[421416841,1777606242000,-893.0,0.00018239,7]
[421416850,1777606242000,-500.0,0.00018239,7]
[421416849,1777606242000,-500.0,0.00018239,7]
[421416847,1777606242000,-893.0,0.00018239,7]
[421416851,1777606242000,-500.0,0.00018239,7]
[421416854,1777606242000,-500.0,0.00018239,7]
[421416843,1777606242000,-893.0,0.00018239,7]
[421416848,1777606242000,-500.0,0.00018239,7]
[421416846,1777606242000,-500.0,0.00018239,7]
[421416845,1777606242000,-893.0,0.00018239,7]
[421416852,1777606242000,-500.0,0.00018239,7]
[421416844,1777606242000,-893.0,0.00018239,7]
[421416853,1777606242000,-893.0,0.00018239,7]
[421416950,1777606243000,-813.43133,0.00019,2]
[421416954,1777606243000,-813.43133,0.00019,2]
[421416944,1777606243000,-600.0,0.00018915,2]
[421416931,1777606243000,-792.0,0.000189,2]
[421416935,1777606243000,-243.58394529,0.00018904,2]
[421416927,1777606243000,-500.0,0.00018899,2]
[421416938,1777606243000,-813.43133,0.00018904,2]
[421416933,1777606243000,-29874.31231438,0.000189,2]
[421416936,1777606243000,-813.43133,0.00018904,2]
[421416942,1777606243000,-151.0,0.00018904,2]
[421416929,1777606243000,-571.76038702,0.00018899,2]
[421416940,1777606243000,-813.43133,0.00018904,2]
[421416943,1777606243000,-1508.0,0.00018904,2]
[421416947,1777606243000,-160.0,0.00018985,4]
[421416959,1777606243000,-151.0,0.00019,2]
[421416949,1777606243000,-291.16025861,0.00019,4]
[421416955,1777606243000,-813.43133,0.00019,2]
[421416951,1777606243000,-813.43133,0.00019,2]
[421416958,1777606243000,-151.0,0.00019,2]
[421416946,1777606243000,-2312.83697232,0.00018975,2]
[421416952,1777606243000,-813.43133,0.00019,2]
[421416948,1777606243000,-200.0,0.00018999,2]
[421416957,1777606243000,-813.43133,0.00019,2]
[421416956,1777606243000,-813.43133,0.00019,2]
[421416953,1777606243000,-813.43133,0.00019,2]
[421416971,1777606243000,-391.9012,0.00019,2]
[421416973,1777606243000,-391.9012,0.00019,2]
[421416941,1777606243000,-151.0,0.00018904,2]
[421416945,1777606243000,-578.20924308,0.00018975,2]
[421416939,1777606243000,-813.43133,0.00018904,2]
[421416891,1777606243000,-500.0,0.00018513,2]